bitfinex/quotes_SOLUSD_20250527
["timestamp","ask_amount","ask_price","bid_price","bid_amount"]
[1748328299568,18.51866998,174.96,174.88,39.46]
[1748328299879,12.51729824,174.89,174.88,39.46]
[1748328300048,12.51729824,174.89,174.88,73.74]
[1748328300247,32.00137174,174.96,174.88,73.74]
[1748328300474,12.51729824,174.95,174.9,12.51729824]
[1748328300682,14.23197588,174.96,174.91,46.79729824]
[1748328300976,7.38152137,174.98,174.92,18.64964886]
[1748328300977,21.61335219,174.98,174.92,18.64964886]
[1748328301153,12.51729824,174.95,174.91,34.28]
[1748328301351,12.51729824,174.95,174.9,26.0]
[1748328301352,1.71487367,174.94,174.92,34.28]
[1748328301582,1.71487367,174.94,174.93,34.28]
[1748328302375,14.23217191,174.94,174.93,34.28]
[1748328302675,14.23217191,174.94,174.88,39.46]
[1748328302855,12.51729824,174.9,174.89,34.28]
[1748328303656,14.2325641,174.9,174.89,34.28]
[1748328304186,14.2325641,174.9,174.88,39.46]
[1748328304358,12.51729824,174.89,174.88,39.46]
[1748328304553,12.51729824,174.89,174.84,82.24]
[1748328304769,18.52072876,174.9,174.84,82.24]
[1748328305076,12.51729824,174.87,174.85,34.28]
[1748328305460,1.71565824,174.86,174.85,34.28]
[1748328305761,14.23295648,174.86,174.83,39.32]
[1748328305968,1.71565824,174.86,174.84,34.28]
[1748328306478,12.51729824,174.85,174.84,34.28]
[1748328307469,14.2330546,174.85,174.84,34.28]
[1748328307774,14.2330546,174.85,174.83,39.32]
[1748328307977,12.51729824,174.84,174.78,39.34]
[1748328308182,12.51729824,174.79,174.78,39.34]
[1748328308584,26.0,174.82,174.78,39.34]
[1748328308879,12.51729824,174.79,174.77,34.3]
[1748328309070,12.51729824,174.78,174.73,121.6]
[1748328309274,12.51729824,174.74,174.73,121.6]
[1748328309662,14.23413468,174.74,174.73,39.34]
[1748328309864,14.23413468,174.74,174.73,73.64]
[1748328310060,14.23413468,174.74,174.67,39.34]
[1748328310267,12.51729824,174.72,174.68,34.3]
[1748328310585,14.2339382,174.76,174.71,12.51729824]
[1748328310767,12.51729824,174.75,174.72,34.3]
[1748328311282,12.51729824,174.73,174.72,34.3]
[1748328311463,12.51729824,174.74,174.72,34.3]
[1748328311666,12.51729824,174.73,174.72,34.3]
[1748328312186,1.71654174,174.77,174.67,39.34]
[1748328312187,6.00789609,174.77,174.67,39.34]
[1748328312383,12.51729824,174.73,174.68,46.81729824]
[1748328312571,12.51729824,174.74,174.68,46.81729824]
[1748328312774,12.51729824,174.74,174.69,12.51729824]
[1748328313386,12.51729824,174.75,174.7,12.51729824]
[1748328313768,12.51729824,174.74,174.69,18.64964886]
[1748328313966,12.51729824,174.74,174.69,31.1669471]
[1748328314986,12.51729824,174.73,174.69,18.64964886]
[1748328315183,12.51729824,174.74,174.69,31.1669471]
[1748328315491,12.51729824,174.74,174.68,34.3]
[1748328315673,6.00789609,174.77,174.67,51.85729824]
[1748328315674,12.51729824,174.73,174.67,51.85729824]
[1748328315880,1.71703296,174.72,174.68,34.3]
[1748328316385,14.2343312,174.72,174.68,34.3]
[1748328317168,4.29135435,174.77,174.68,34.3]
[1748328317388,12.51729824,174.73,174.68,46.81729824]
[1748328318090,14.23420606,174.74,174.69,12.51729824]
[1748328318682,1.71690782,174.74,174.69,12.51729824]
[1748328318993,1.71690782,174.74,174.7,12.51729824]
[1748328319583,14.23405385,174.75,174.7,12.51729824]
[1748328320371,1.71675561,174.75,174.71,73.68]
[1748328320570,14.23405385,174.75,174.71,73.68]
[1748328320771,1.71675561,174.75,174.71,73.68]
[1748328321172,14.23405385,174.75,174.71,73.68]
[1748328321472,12.51729824,174.74,174.71,73.68]
[1748328321872,14.23405385,174.75,174.71,73.68]
[1748328322173,1.71675561,174.75,174.71,98.89729824]
[1748328322390,34.52308987,174.78,174.73,12.51729824]
[1748328322391,1.71654174,174.77,174.73,12.51729824]
[1748328322574,31.9482768,174.78,174.74,12.51729824]
[1748328322896,30.23182677,174.78,174.76,12.51729824]
[1748328323097,30.23182677,174.78,174.75,34.32]
[1748328323787,44.46557323,174.78,174.75,34.32]
[1748328324376,31.94827499,174.78,174.75,34.32]
[1748328324893,31.94827499,174.78,174.76,12.51729824]
[1748328324894,30.23182677,174.78,174.76,12.51729824]
[1748328325095,30.23182677,174.78,174.77,39.38]
[1748328325399,30.23182677,174.78,174.77,51.89729824]
[1748328325600,1.71623089,174.81,174.77,51.89729824]
[1748328325909,12.51729824,174.8,174.77,39.38]
[1748328327096,4.2900401,174.83,174.77,39.38]
[1748328327298,12.51729824,174.81,174.77,39.38]
[1748328327973,12.51729824,174.8,174.77,39.38]
[1748328329072,12.51729824,174.81,174.77,39.38]
[1748328329273,1.71624713,174.8,174.77,39.38]
[1748328329588,1.71624713,174.8,174.77,51.89729824]
[1748328330088,12.51729824,174.78,174.77,39.38]
[1748328330284,12.51729824,174.78,174.77,73.7]
[1748328331175,1.71654174,174.77,174.72,39.44]
[1748328331377,12.51729824,174.75,174.73,34.32]
[1748328331714,12.51729824,174.74,174.73,34.32]
[1748328332072,12.51729824,174.75,174.73,34.32]
[1748328332273,1.71693469,174.73,174.72,39.44]
[1748328332594,1.71693469,174.73,174.72,73.76]
[1748328333399,1.71693469,174.73,174.72,39.44]
[1748328333604,1.71693469,174.73,174.72,73.76]
[1748328334906,1.71693469,174.73,174.72,39.44]
[1748328335091,1.71693469,174.73,174.72,73.76]
[1748328336506,1.71693469,174.73,174.72,39.44]
[1748328336810,1.71693469,174.73,174.72,73.76]
[1748328336981,1.71663996,174.76,174.72,73.76]
[1748328337183,1.71663996,174.76,174.72,98.97729824]
[1748328337715,1.71663996,174.76,174.72,86.46]
[1748328337716,12.51729824,174.75,174.72,86.46]
[1748328338007,12.51729824,174.73,174.72,52.14]
[1748328338194,12.51729824,174.73,174.72,73.76]
[1748328338978,12.51729824,174.73,174.72,39.44]
[1748328339183,14.23423293,174.73,174.72,73.76]
[1748328340021,14.23423293,174.73,174.72,39.44]
[1748328340197,14.23423293,174.73,174.72,73.76]
[1748328341713,1.71693469,174.73,174.72,73.76]
[1748328341897,14.23423293,174.73,174.72,73.76]
[1748328342422,1.71693469,174.73,174.72,73.76]
[1748328342797,1.71683644,174.74,174.72,73.76]
[1748328342997,14.23413468,174.74,174.72,73.76]
[1748328344112,1.71683644,174.74,174.72,73.76]
[1748328345025,6.00823986,174.76,174.72,73.76]
[1748328345228,14.2339382,174.76,174.72,73.76]
[1748328345402,12.51729824,174.75,174.72,73.76]
[1748328347127,1.71683644,174.74,174.72,73.76]
[1748328347338,12.51729824,174.73,174.72,73.76]
[1748328347505,12.51729824,174.73,174.69,39.44]
[1748328347703,12.51729824,174.72,174.7,34.32]
[1748328348728,1.71713124,174.71,174.7,34.32]
[1748328349629,1.71713124,174.71,174.69,39.44]
[1748328349807,1.71713124,174.71,174.7,34.32]
[1748328350007,4.2920911,174.74,174.7,34.32]
[1748328350423,12.51729824,174.73,174.69,39.44]
[1748328350626,12.51729824,174.73,174.7,34.32]
[1748328351230,1.71703296,174.72,174.69,39.44]
[1748328351636,14.2343312,174.72,174.7,34.32]
[1748328351926,12.51729824,174.71,174.7,34.32]
[1748328352906,12.51729824,174.71,174.69,39.44]
[1748328353109,12.51729824,174.71,174.7,34.32]
[1748328353333,14.23442948,174.71,174.7,34.32]
[1748328354317,14.23442948,174.71,174.69,39.44]
[1748328354519,14.23442948,174.71,174.7,34.32]
[1748328354713,14.23442948,174.71,174.69,39.44]
[1748328354926,12.51729824,174.7,174.69,73.76]
[1748328355142,12.51729824,174.7,174.67,12.7]
[1748328355327,12.51729824,174.69,174.64,52.16]
[1748328355630,12.51729824,174.68,174.65,34.32]
[1748328355810,12.51729824,174.69,174.65,34.32]
[1748328356536,1.71742615,174.68,174.64,52.16]
[1748328356740,1.71742615,174.68,174.65,47.02]
[1748328357434,1.71742615,174.68,174.65,12.7]
[1748328357637,1.71742615,174.68,174.66,34.34]
[1748328357834,12.51729824,174.67,174.64,39.46]
[1748328358015,1.71742615,174.68,174.64,39.46]
[1748328358016,1.71742615,174.68,174.65,34.34]
[1748328358216,1.71742615,174.68,174.65,46.85729824]
[1748328358434,1.71742615,174.68,174.62,121.74]
[1748328358639,12.51729824,174.67,174.63,34.34]
[1748328358939,1.71762281,174.66,174.63,34.34]
[1748328359141,18.52897807,174.66,174.62,121.74]
[1748328359332,18.52897807,174.66,174.64,34.34]
[1748328359635,6.01167983,174.66,174.64,34.34]
[1748328359840,18.52897807,174.66,174.64,34.34]
[1748328360014,18.52897807,174.66,174.65,34.34]
[1748328360222,6.01167983,174.66,174.62,82.28]
[1748328360426,18.52897807,174.66,174.63,34.34]
[1748328360631,1.71762281,174.66,174.63,46.85729824]
[1748328360836,1.71752447,174.67,174.63,46.85729824]
[1748328361226,1.71752447,174.67,174.64,12.51729824]
[1748328361424,1.71752447,174.67,174.63,46.85729824]
[1748328361647,18.52863389,174.67,174.62,82.28]
[1748328361821,6.01133565,174.67,174.63,34.34]
[1748328362138,18.52863389,174.67,174.63,34.34]
[1748328362326,12.51729824,174.66,174.63,34.34]
[1748328362521,12.51729824,174.65,174.63,34.34]
[1748328362839,1.71781951,174.64,174.63,34.34]
[1748328363039,1.71781951,174.64,174.62,82.28]
[1748328363040,1.71781951,174.64,174.6,39.46]
[1748328363428,1.71781951,174.64,174.61,34.34]
[1748328363742,6.01236829,174.64,174.6,39.46]
[1748328363925,12.51729824,174.63,174.61,34.34]
[1748328364626,6.01236829,174.64,174.61,34.34]
[1748328364941,14.2353145,174.62,174.61,34.34]
[1748328365157,1.71801626,174.62,174.6,39.46]
[1748328365320,26.0,174.59,174.55,39.36]
[1748328365523,38.51729824,174.59,174.56,34.34]
[1748328365821,38.51729824,174.59,174.57,34.34]
[1748328366020,38.51729824,174.59,174.55,39.36]
[1748328366221,38.51729824,174.59,174.56,34.34]
[1748328366458,12.51729824,174.6,174.56,34.34]
[1748328366652,12.51729824,174.6,174.55,39.36]
[1748328366822,1.71840989,174.58,174.56,34.34]
[1748328368167,1.71840989,174.58,174.55,39.36]
[1748328368347,1.71840989,174.58,174.56,34.34]
[1748328369186,1.71840989,174.58,174.57,34.34]
[1748328369187,14.23570813,174.58,174.57,34.34]
[1748328369556,1.71840989,174.58,174.57,34.34]
[1748328370687,14.23570813,174.58,174.57,34.34]
[1748328370977,26.0,174.55,174.51,82.4]
[1748328371142,12.51729824,174.52,174.48,39.38]
[1748328371344,12.51729824,174.51,174.49,34.34]
[1748328371576,12.51729824,174.5,174.49,34.34]
[1748328371749,6.01581299,174.54,174.49,34.34]
[1748328371959,12.51729824,174.5,174.48,39.38]
[1748328372168,26.0,174.51,174.43,39.38]
[1748328372340,12.51729824,174.47,174.43,39.38]
[1748328372540,12.51729824,174.46,174.44,34.34]
[1748328372758,12.51729824,174.45,174.43,39.38]
[1748328372948,26.0,174.5,174.44,34.34]
[1748328373149,1.71929623,174.49,174.44,34.34]
[1748328373356,1.71929623,174.49,174.46,12.51729824]
[1748328373673,1.71929623,174.49,174.47,12.51729824]
[1748328373988,1.71919807,174.5,174.47,12.51729824]
[1748328374274,1.71919807,174.5,174.48,34.34]
[1748328374477,1.71900068,174.52,174.48,46.85729824]
[1748328375246,1.71900068,174.52,174.49,12.51729824]
[1748328377553,25.59336108,174.53,174.5,12.51729824]
[1748328377979,23.87443584,174.53,174.52,12.51729824]
[1748328378286,23.87443584,174.53,174.52,46.87729824]
[1748328379061,23.87443584,174.53,174.52,34.36]
[1748328379261,23.87443584,174.53,174.52,46.87729824]
[1748328380771,1.71846269,174.58,174.52,52.60730053]
[1748328380966,1.71811465,174.61,174.57,12.51729824]
[1748328381279,1.71811465,174.61,174.58,34.36]
[1748328381894,1.71811465,174.61,174.58,46.87729824]
[1748328382050,1.71772115,174.65,174.6,12.51729824]
[1748328382251,1.71772115,174.65,174.62,12.51729824]
[1748328382456,1.71772115,174.65,174.63,46.87729824]
[1748328383020,1.71772115,174.65,174.63,34.36]
[1748328383324,1.71762872,174.66,174.64,12.51729824]
[1748328384378,1.71762872,174.66,174.63,34.36]
[1748328384598,1.71762872,174.66,174.63,46.87729824]
[1748328384803,1.71762872,174.66,174.63,34.36]
[1748328385108,1.71762872,174.66,174.64,34.36]
[1748328386501,12.51729824,174.65,174.62,39.38]
[1748328386725,12.51729824,174.65,174.63,34.36]
[1748328387105,6.01168574,174.66,174.62,39.38]
[1748328387409,12.51729824,174.65,174.63,34.36]
[1748328387583,1.71781951,174.64,174.63,34.36]
[1748328388909,14.23511775,174.64,174.62,39.38]
[1748328389106,1.71781951,174.64,174.62,39.38]
[1748328389288,12.51729824,174.63,174.62,39.38]
[1748328389687,6.01167983,174.66,174.62,39.38]
[1748328389907,12.51729824,174.65,174.62,39.38]
[1748328390210,12.51729824,174.64,174.62,39.38]
[1748328390504,12.51729824,174.63,174.62,39.38]
[1748328390813,12.51729824,174.63,174.62,73.74]
[1748328390996,6.01167983,174.66,174.62,73.74]
[1748328391310,12.51729824,174.64,174.62,73.74]
[1748328391717,12.51729824,174.64,174.62,39.38]
[1748328391927,12.51729824,174.64,174.62,73.74]
[1748328392085,12.51729824,174.63,174.56,12.7]
[1748328392287,12.51729824,174.63,174.58,12.51729824]
[1748328392619,12.51729824,174.62,174.57,75.64]
[1748328392783,12.51729824,174.62,174.57,88.15729824]
[1748328393183,1.71811465,174.61,174.57,88.15729824]
[1748328393418,14.23541289,174.61,174.57,41.28]
[1748328393589,14.23541289,174.61,174.58,34.36]
[1748328393789,18.53069952,174.61,174.58,34.36]
[1748328394101,18.53069952,174.61,174.59,34.36]
[1748328394712,6.01340128,174.61,174.59,34.36]
[1748328396794,1.71791788,174.63,174.59,34.36]
[1748328397420,1.71791788,174.63,174.59,46.87729824]
[1748328398626,18.53001082,174.63,174.59,34.36]
[1748328398799,1.71821305,174.6,174.56,12.7]
[1748328398995,1.71821305,174.6,174.57,75.64]
[1748328399523,1.71821305,174.6,174.58,34.36]
[1748328399726,14.23551129,174.6,174.58,34.36]
[1748328400024,18.53104393,174.6,174.58,34.36]
[1748328400423,18.53104393,174.6,174.56,53.98]
[1748328400619,18.53104393,174.6,174.57,34.36]
[1748328401123,18.53104393,174.6,174.58,34.36]
[1748328401997,18.53104393,174.6,174.59,34.36]
[1748328402915,6.01374569,174.6,174.59,34.36]
[1748328403125,18.53104393,174.6,174.59,34.36]
[1748328404228,18.53104393,174.6,174.56,41.28]
[1748328404421,18.53104393,174.6,174.58,34.36]
[1748328404813,6.01374569,174.6,174.58,34.36]
[1748328405008,1.71821305,174.6,174.59,12.51729824]
[1748328405212,1.71801626,174.62,174.59,12.51729824]
[1748328405420,1.71801626,174.62,174.6,12.51729824]
[1748328405819,14.23501939,174.65,174.6,12.51729824]
[1748328406329,14.23501939,174.65,174.58,47.06]
[1748328406330,6.01202404,174.65,174.61,12.51729824]
[1748328406626,1.71772115,174.65,174.64,12.51729824]
[1748328407213,7.55465637,174.69,174.64,12.51729824]
[1748328407214,1.71742615,174.68,174.64,12.51729824]
[1748328407420,1.71742615,174.68,174.67,12.51729824]
[1748328407617,1.71742615,174.68,174.67,46.87729824]
[1748328408112,1.71722953,174.7,174.67,46.87729824]
[1748328408510,1.71722953,174.7,174.67,34.36]
[1748328410739,12.51729824,174.71,174.67,34.36]
[1748328411338,18.52694523,174.72,174.67,46.87729824]
[1748328416238,12.51729824,174.71,174.67,34.36]
[1748328416920,12.51729824,174.71,174.66,12.51729824]
[1748328417122,12.51729824,174.71,174.68,34.34]
[1748328418125,6.00964699,174.72,174.68,34.34]
[1748328418332,12.51729824,174.71,174.68,34.34]
[1748328418531,1.71722953,174.7,174.68,34.34]
[1748328420343,1.71713124,174.71,174.68,34.34]
[1748328420554,1.71713124,174.71,174.69,12.51729824]
[1748328420724,1.71713124,174.71,174.7,12.51729824]
[1748328421126,1.71683644,174.74,174.7,12.51729824]
[1748328421348,1.71683644,174.74,174.71,12.51729824]
[1748328421524,6.00892754,174.74,174.72,34.34]
[1748328423354,4.10099046,174.78,174.73,12.51729824]
[1748328423652,1.71654174,174.77,174.76,12.51729824]
[1748328423822,1.71654174,174.77,174.76,46.85729824]
[1748328426138,1.71614896,174.81,174.76,46.85729824]
[1748328426342,1.71614896,174.81,174.79,12.51729824]
[1748328426542,1.71605079,174.82,174.8,46.83729824]
[1748328426853,1.71605079,174.82,174.81,12.51729824]
[1748328427226,1.71575636,174.85,174.81,12.51729824]
[1748328427426,1.71575636,174.85,174.82,12.51729824]
[1748328428054,6.00514726,174.85,174.8,75.14]
[1748328428262,6.00514726,174.85,174.81,12.51729824]
[1748328429641,6.00514726,174.85,174.82,12.51729824]
[1748328430745,4.2893909,174.85,174.82,12.51729824]
[1748328434068,4.2893909,174.85,174.83,12.51729824]
[1748328434254,4.2893909,174.85,174.84,34.32]
[1748328434566,4.2893909,174.85,174.84,46.83729824]
[1748328434973,14.58073915,174.89,174.84,46.83729824]
[1748328435144,14.58073915,174.89,174.85,12.51729824]
[1748328440558,6.00377379,174.89,174.88,12.51729824]
[1748328440764,1.71536394,174.89,174.88,46.81729824]
[1748328442254,1.7151678,174.91,174.88,46.81729824]
[1748328442454,8.57298023,174.97,174.9,12.51729824]
[1748328442766,8.57298023,174.97,174.94,12.51729824]
[1748328442948,8.57298023,174.97,174.95,34.3]
[1748328443151,6.00068578,174.98,174.95,34.3]
[1748328443557,18.51798402,174.98,174.95,34.3]
[1748328444154,6.00068578,174.98,174.95,34.3]
[1748328444685,4.28620413,174.98,174.95,34.3]
[1748328445879,6.00068578,174.98,174.95,34.3]
[1748328447351,6.00068578,174.98,174.95,46.81729824]
[1748328447878,4.28620413,174.98,174.95,46.81729824]
[1748328449265,4.28620413,174.98,174.95,34.3]
[1748328449481,4.28620413,174.98,174.92,12.51729824]
[1748328449781,12.51729824,174.97,174.93,75.36]
[1748328449983,1.71467764,174.96,174.93,75.36]
[1748328450690,1.71467764,174.96,174.93,41.06]
[1748328450856,1.71467764,174.96,174.94,34.28]
[1748328451290,1.71467764,174.96,174.93,41.06]
[1748328451461,1.71467764,174.96,174.95,34.28]
[1748328452491,53.09205818,174.96,174.83,7.9154]
[1748328452655,12.51729824,174.91,174.88,41.06]
[1748328452982,12.51729824,174.91,174.89,34.28]
[1748328453679,12.51729824,174.91,174.9,34.28]
[1748328453856,12.51729824,174.91,174.88,41.06]
[1748328454061,23.14814814,174.96,174.89,46.79729824]
[1748328454263,18.51866998,174.96,174.91,12.51729824]
[1748328454865,18.51866998,174.96,174.89,34.28]
[1748328455172,12.51729824,174.95,174.9,12.51729824]
[1748328455375,6.00137174,174.96,174.89,12.51729824]
[1748328455576,12.51729824,174.95,174.9,34.28]
[1748328455779,12.51729824,174.95,174.9,46.79729824]
[1748328456649,16.80399234,174.96,174.91,12.51729824]
[1748328456854,4.2866941,174.96,174.92,12.51729824]
[1748328457054,4.2866941,174.96,174.93,12.51729824]
[1748328457279,4.2866941,174.96,174.94,34.28]
[1748328457487,16.80399234,174.96,174.94,34.28]
[1748328458692,18.51866998,174.96,174.94,34.28]
[1748328460596,6.00137174,174.96,174.94,34.28]
[1748328460977,1.71467764,174.96,174.94,34.28]
[1748328461175,1.71467764,174.96,174.94,46.79729824]
[1748328461966,12.51729824,174.98,174.94,34.28]
[1748328462591,12.51729824,174.96,174.91,12.51729824]
[1748328462790,12.51729824,174.96,174.92,34.28]
[1748328463090,12.51729824,174.95,174.91,41.06]
[1748328463297,12.51729824,174.95,174.92,34.28]
[1748328464191,1.71487367,174.94,174.91,41.06]
[1748328464497,1.71487367,174.94,174.93,34.28]
[1748328464696,1.71487367,174.94,174.91,41.06]
[1748328464697,14.23217191,174.94,174.91,41.06]
[1748328464903,38.51729824,174.92,174.86,41.06]
[1748328465201,12.51729824,174.88,174.86,75.34]
[1748328465390,12.51729824,174.88,174.86,41.06]
[1748328465600,12.51729824,174.88,174.86,75.34]
[1748328466310,14.23285837,174.87,174.86,75.34]
[1748328466686,1.71556013,174.87,174.86,75.34]
[1748328467902,14.23285837,174.87,174.86,75.36]
[1748328468304,1.71556013,174.87,174.86,75.36]
[1748328468818,1.71556013,174.87,174.86,41.06]
[1748328469020,14.23285837,174.87,174.86,75.36]
[1748328469389,14.23285837,174.87,174.86,34.3]
[1748328470024,4.28834623,174.9,174.86,34.3]
[1748328470184,12.51729824,174.87,174.86,34.3]
[1748328472316,14.23285837,174.87,174.86,34.3]
[1748328472915,18.52175869,174.87,174.82,82.32]
[1748328473096,12.51729824,174.85,174.83,34.3]
[1748328474418,1.71585449,174.84,174.83,34.3]
[1748328474603,1.71585449,174.84,174.82,82.32]
[1748328474804,1.71585449,174.84,174.83,34.3]
[1748328476915,1.71575636,174.85,174.83,34.3]
[1748328477123,12.51729824,174.84,174.81,53.76]
[1748328477302,12.51729824,174.83,174.82,34.3]
[1748328478529,14.23325087,174.83,174.82,34.3]
[1748328479403,1.71595263,174.83,174.82,34.3]
[1748328480523,1.71565824,174.86,174.82,46.81729824]
[1748328480746,12.51729824,174.84,174.82,34.3]
[1748328480902,12.51729824,174.83,174.81,41.06]
[1748328481106,12.51729824,174.83,174.82,34.3]
[1748328481837,12.51729824,174.83,174.81,41.06]
[1748328482012,6.00480384,174.86,174.81,41.06]
[1748328482329,12.51729824,174.83,174.82,34.3]
[1748328482506,12.51729824,174.84,174.82,34.3]
[1748328482699,14.2330546,174.85,174.82,34.3]
[1748328482918,1.71575636,174.85,174.82,34.3]
[1748328483327,1.71575636,174.85,174.82,46.81729824]
[1748328484528,1.71575636,174.85,174.82,34.3]
[1748328484907,1.71575636,174.85,174.83,12.51729824]
[1748328485319,12.51729824,174.84,174.76,42.0993]
[1748328485519,12.51729824,174.81,174.77,34.3]
[1748328486732,12.51729824,174.8,174.77,34.3]
[1748328487033,1.71634532,174.79,174.78,34.3]
[1748328488822,1.71634532,174.79,174.76,53.07729824]
[1748328489145,1.71624713,174.8,174.78,34.3]
[1748328489713,1.71624713,174.8,174.79,34.3]
[1748328490750,14.58392907,174.85,174.79,34.3]
[1748328491051,12.51729824,174.83,174.79,34.3]
[1748328492941,1.71605079,174.82,174.79,34.3]
[1748328493840,1.71605079,174.82,174.79,59.51729824]
[1748328494848,1.71595263,174.83,174.79,59.51729824]
[1748328495342,1.71595263,174.83,174.8,12.51729824]
[1748328495539,1.71595263,174.83,174.79,47.0]
[1748328495759,1.71595263,174.83,174.8,12.51729824]
[1748328495966,1.71595263,174.83,174.79,59.51729824]
[1748328496954,1.71585449,174.84,174.8,53.07729824]
[1748328498858,1.71585449,174.84,174.81,12.51729824]
[1748328499265,1.71585449,174.84,174.8,40.56]
[1748328499755,1.71585449,174.84,174.8,53.26]
[1748328500761,1.71585449,174.84,174.8,65.77729824]
[1748328502966,1.71585449,174.84,174.81,12.51729824]
[1748328504063,4.28923799,174.86,174.81,12.51729824]
[1748328504265,16.80653623,174.86,174.81,12.51729824]
[1748328505261,18.52219447,174.86,174.81,25.21729824]
[1748328506771,4.28923799,174.86,174.81,25.21729824]
[1748328507267,4.28923799,174.86,174.82,12.51729824]
[1748328508472,6.00489623,174.86,174.82,12.51729824]
[1748328508766,6.00489623,174.86,174.82,25.21729824]
[1748328509246,6.00489623,174.86,174.82,12.7]
[1748328509451,12.51729824,174.85,174.82,12.7]
[1748328509748,12.51729824,174.83,174.8,40.56]
[1748328509948,12.51729824,174.81,174.8,74.86]
[1748328510154,12.51729824,174.81,174.76,12.7]
[1748328510356,1.71644352,174.78,174.77,34.3]
[1748328510543,1.71644352,174.78,174.75,39.64]
[1748328510544,6.00755234,174.78,174.71,39.64]
[1748328510755,6.00755234,174.78,174.76,12.51729824]
[1748328510756,1.71644352,174.78,174.76,12.51729824]
[1748328510961,1.71644352,174.78,174.75,12.51729824]
[1748328511163,1.71644352,174.78,174.74,12.51729824]
[1748328512671,18.5246605,174.79,174.74,12.51729824]
[1748328513372,18.5246605,174.79,174.72,47.0]
[1748328513546,18.5246605,174.79,174.74,12.51729824]
[1748328514169,18.5246605,174.79,174.73,12.51729824]
[1748328514367,12.51729824,174.78,174.73,12.51729824]
[1748328514576,14.23383998,174.77,174.74,34.3]
[1748328514773,12.51729824,174.76,174.71,39.64]
[1748328515271,12.51729824,174.74,174.71,39.64]
[1748328515472,12.51729824,174.74,174.72,34.3]
[1748328515662,12.51729824,174.74,174.71,73.94]
[1748328515860,12.51729824,174.76,174.71,86.45729824]
[1748328516465,18.52519433,174.77,174.71,86.45729824]
[1748328517178,12.51729824,174.76,174.71,86.45729824]
[1748328517370,12.51729824,174.75,174.71,73.94]
[1748328517960,12.51729824,174.75,174.71,39.64]
[1748328518177,12.51729824,174.74,174.72,34.32]
[1748328518358,6.00789609,174.77,174.72,34.32]
[1748328518561,12.51729824,174.76,174.72,34.32]
[1748328519778,1.71673819,174.75,174.72,34.32]
[1748328520083,12.51729824,174.73,174.72,34.32]
[1748328520282,12.51729824,174.73,174.71,73.96]
[1748328520581,12.51729824,174.74,174.71,73.96]
[1748328521182,12.51729824,174.72,174.71,39.64]
[1748328521379,12.51729824,174.72,174.66,52.15729824]
[1748328521575,12.51729824,174.69,174.66,39.64]
[1748328521914,14.23472439,174.68,174.66,39.64]
[1748328522086,14.23472439,174.68,174.66,73.96]
[1748328522670,14.23472439,174.68,174.66,39.64]
[1748328523073,18.52828976,174.68,174.61,19.0818]
[1748328523268,12.51729824,174.66,174.62,34.32]
[1748328523464,6.01099152,174.68,174.61,39.64]
[1748328523465,12.51729824,174.65,174.61,39.64]
[1748328523697,12.51729824,174.65,174.62,34.32]
[1748328523892,1.71781951,174.64,174.62,34.32]
[1748328524590,1.71781951,174.64,174.61,52.15729824]
[1748328524893,1.71781951,174.64,174.63,34.32]
[1748328525672,1.71772115,174.65,174.63,34.32]
[1748328526796,12.51729824,174.65,174.63,34.32]
[1748328527994,1.71781951,174.64,174.63,34.32]
[1748328528407,14.23511775,174.64,174.61,39.64]
[1748328528705,12.51729824,174.62,174.61,39.64]
[1748328528988,1.71781951,174.64,174.61,39.64]
[1748328529208,12.51729824,174.62,174.61,39.64]
[1748328529896,12.51729824,174.62,174.54,39.66]
[1748328530102,12.51729824,174.58,174.55,34.34]
[1748328531200,1.71811465,174.61,174.55,46.85729824]
[1748328531499,14.23541289,174.61,174.56,12.51729824]
[1748328531698,1.71791788,174.63,174.59,12.51729824]
[1748328531870,1.71752447,174.67,174.62,12.51729824]
[1748328532076,18.52844189,174.68,174.63,46.85729824]